bitfinex/quotes_ETHUSD_20260203
["timestamp","ask_amount","ask_price","bid_price","bid_amount"]
[1770093705160,12.84234678,2352.1,2350.9,4.25351874]
[1770093707131,13.90527195,2352.0,2350.9,4.25351874]
[1770093707659,13.90527195,2352.0,2350.9,1.06342251]
[1770093707849,12.84234678,2351.8,2350.9,1.06342251]
[1770093708233,12.84234678,2351.8,2350.8,1.06344904]
[1770093708428,12.84234678,2351.8,2351.1,0.001]
[1770093708840,1.81568126,2351.9,2351.1,0.001]
[1770093709241,15.72103533,2351.9,2351.1,0.001]
[1770093709442,0.99112984,2351.8,2351.1,0.001]
[1770093709843,14.79622546,2352.2,2351.1,0.001]
[1770093710135,13.90522546,2352.2,2351.1,0.001]
[1770093713269,1.28423468,2352.4,2351.2,13.34673535]
[1770093713437,1.06265765,2352.6,2351.2,13.34673535]
[1770093714051,13.284253,2352.6,2351.2,13.34673535]
[1770093715571,4.25123145,2352.9,2351.2,13.34673535]
[1770093715572,0.0011,2352.9,2352.0,12.28344852]
[1770093715775,0.0011,2352.9,2352.1,14.40410485]
[1770093716067,0.0011,2352.9,2352.1,13.17444852]
[1770093716663,12.22159535,2353.8,2352.4,0.01311475]
[1770093717341,13.28373827,2353.8,2352.5,1.06269925]
[1770093717870,1.14882737,2354.1,2353.2,0.01311475]
[1770093717871,0.003,2354.1,2353.2,0.01311475]
[1770093718070,0.003,2354.1,2353.0,12.29656327]
[1770093718071,0.003,2354.1,2353.3,0.891]
[1770093718577,1.06171455,2354.7,2353.4,0.01311475]
[1770093718767,12.22159535,2355.1,2353.6,0.01311475]
[1770093718768,1.06160138,2355.0,2353.6,0.01311475]
[1770093719272,13.28303126,2355.3,2353.7,12.28344852]
[1770093719487,13.28303126,2355.3,2353.8,1.06211232]
[1770093720040,12.22159535,2355.1,2353.8,1.06211232]
[1770093721573,12.22159535,2354.9,2353.7,4.24844931]
[1770093721768,1.32831665,2354.8,2353.8,0.84968986]
[1770093722373,12.22159535,2355.3,2354.3,0.01311475]
[1770093722572,4.24524782,2355.6,2354.3,0.01311475]
[1770093722573,1.17551695,2355.5,2354.3,0.01311475]
[1770093723074,1.1755072,2355.5,2354.5,0.01311475]
[1770093723276,1.1755072,2355.5,2354.4,0.01311475]
[1770093723474,0.54207219,2355.4,2354.5,1.06179655]
[1770093723850,1.60346416,2355.4,2354.5,1.06179655]
[1770093724256,0.54207219,2355.4,2354.5,1.06179655]
[1770093725082,1.60346513,2355.4,2354.5,1.06179655]
[1770093725382,13.82506048,2355.4,2354.5,1.06179655]
[1770093725584,15.10150603,2355.3,2354.3,1.06188676]
[1770093725786,15.10151669,2355.3,2354.3,1.06188676]
[1770093725992,14.04006814,2355.3,2354.3,1.06188676]
[1770093726193,15.10150719,2355.3,2354.3,1.06188676]
[1770093726886,15.10150719,2355.3,2354.1,1.06197016]
[1770093727091,15.10150719,2355.3,2353.8,0.84968986]
[1770093727092,12.22159535,2355.1,2354.2,1.06193063]
[1770093727459,13.28316647,2355.0,2353.7,4.24857916]
[1770093727989,12.22159535,2355.0,2353.7,4.24857916]
[1770093728174,0.54207219,2355.4,2353.7,4.24857916]
[1770093728175,0.54207219,2355.4,2354.1,12.29656327]
[1770093728369,0.54207219,2355.4,2354.2,1.2309678]
[1770093728593,1.60349998,2355.4,2354.2,1.2309678]
[1770093728774,1.06142779,2355.4,2354.2,1.2309678]
[1770093729101,1.06142779,2355.4,2354.2,1.24408255]
[1770093729276,0.1141474,2355.5,2354.2,1.24408255]
[1770093729482,1.17550112,2355.5,2354.2,1.24408255]
[1770093729862,1.17550112,2355.5,2354.3,1.07500151]
[1770093730062,1.17550112,2355.5,2354.4,0.65666311]
[1770093730775,12.22159535,2355.4,2354.3,1.06188676]
[1770093730977,13.39709647,2355.5,2354.3,1.06188676]
[1770093731696,13.39709647,2355.5,2354.2,1.0619031]
[1770093731887,13.39709647,2355.5,2354.0,4.24772746]
[1770093732594,12.22159535,2355.1,2353.9,1.06203292]
[1770093732899,12.22159535,2354.9,2353.9,1.59306825]
[1770093733284,12.22159535,2354.9,2353.9,0.53103533]
[1770093733488,12.22159535,2354.9,2353.9,1.59309634]
[1770093734297,12.22159535,2354.9,2353.8,1.06207774]
[1770093734298,12.22159535,2354.7,2353.8,1.06207774]
[1770093734510,1.06166128,2354.8,2353.9,1.06206024]
[1770093735002,1.22347101,2355.0,2353.9,1.06206024]
[1770093735372,2.28504318,2355.0,2353.9,1.06206024]
[1770093735598,2.28504318,2355.0,2354.2,0.001]
[1770093735795,1.87527524,2354.9,2354.2,0.001]
[1770093736203,2.28504562,2355.0,2354.2,0.001]
[1770093736403,14.50664097,2355.0,2354.2,0.001]
[1770093738704,4.24574739,2355.3,2354.2,0.001]
[1770093738705,1.06146745,2355.3,2354.2,0.001]
[1770093739396,13.2830212,2355.4,2354.2,0.001]
[1770093740487,13.2830212,2355.4,2354.2,1.06293186]
[1770093742588,13.2830212,2355.4,2354.2,0.001]
[1770093742902,14.67941516,2355.3,2354.2,0.001]
[1770093743689,1.76425765,2355.3,2354.2,12.93650776]
[1770093744011,0.1141474,2355.5,2354.2,12.93650776]
[1770093744012,1.1755275,2355.5,2354.2,12.93650776]
[1770093744219,0.1141474,2355.5,2354.2,12.93650776]
[1770093744384,0.1141474,2355.5,2354.3,12.94862251]
[1770093744583,1.17549409,2355.5,2354.4,1.06184165]
[1770093744904,0.1141474,2355.5,2354.4,1.06184165]
[1770093745082,0.1141474,2355.5,2354.5,1.82578308]
[1770093745285,1.17549492,2355.5,2354.5,1.82578308]
[1770093745892,14.09066108,2355.5,2354.5,1.82578308]
[1770093746112,14.09066108,2355.5,2354.4,1.06184165]
[1770093746997,14.09066108,2355.5,2354.2,4.24836663]
[1770093747427,13.83061801,2355.4,2354.2,4.24836663]
[1770093747582,12.91515751,2355.4,2354.2,4.24836663]
[1770093748201,0.91587131,2355.3,2354.2,4.24836663]
[1770093748400,1.50065324,2355.3,2354.3,0.62134132]
[1770093748810,14.41581075,2355.3,2354.3,0.62134132]
[1770093748984,15.4772514,2355.3,2354.4,1.06184165]
[1770093749402,14.41581075,2355.3,2354.4,1.06184165]
[1770093749597,15.47725097,2355.3,2354.4,1.06184165]
[1770093749795,15.47725097,2355.3,2354.5,0.59315496]
[1770093750106,15.47725097,2355.3,2354.4,1.06184165]
[1770093750107,0.91612467,2355.2,2354.4,1.06184165]
[1770093750306,0.91612467,2355.2,2354.3,0.62234132]
[1770093750307,13.83128218,2355.1,2354.3,1.06288576]
[1770093750517,12.91515751,2354.9,2354.3,1.06288576]
[1770093750720,3.70095653,2355.3,2354.3,1.06288576]
[1770093751024,1.9776232,2355.2,2354.3,0.001]
[1770093751184,2.56211654,2355.3,2354.3,0.001]
[1770093751384,1.59698474,2355.2,2354.3,0.001]
[1770093751587,1.50065324,2355.3,2354.3,0.001]
[1770093751788,14.09068246,2355.5,2354.3,0.001]
[1770093752011,0.91615749,2355.4,2354.3,12.93650776]
[1770093752208,14.09066914,2355.5,2354.3,12.93650776]
[1770093752387,0.91615718,2355.4,2354.3,12.93650776]
[1770093752601,14.09066914,2355.5,2354.3,12.93650776]
[1770093752917,0.91615675,2355.4,2354.4,1.29506225]
[1770093753101,1.0614024,2355.4,2354.5,1.06179655]
[1770093753303,16.03813908,2355.5,2354.5,1.06179655]
[1770093753495,0.9161546,2355.4,2354.5,1.06179655]
[1770093753817,0.1141474,2355.5,2354.6,0.6604045]
[1770093754929,1.17549723,2355.5,2354.6,0.6604045]
[1770093755155,1.17549723,2355.5,2354.7,1.06170637]
[1770093755810,1.07549723,2355.5,2354.7,1.06170637]
[1770093756427,0.0141474,2355.5,2354.7,1.06170637]
[1770093756623,0.0141474,2355.5,2354.8,0.59689885]
[1770093757732,1.07549757,2355.5,2354.8,1.65851819]
[1770093757933,13.99065508,2355.5,2354.8,1.65855096]
[1770093758234,13.99065508,2355.5,2354.8,1.06165211]
[1770093758539,0.0141474,2355.5,2354.8,1.06165211]
[1770093759943,0.0141474,2355.5,2354.5,4.24718565]
[1770093760316,0.0141474,2355.5,2354.5,17.18269341]
[1770093760517,0.0141474,2355.5,2354.6,1.95395522]
[1770093762023,0.0141474,2355.5,2354.7,1.06170637]
[1770093762453,0.0141474,2355.5,2354.8,0.001]
[1770093763024,12.92930491,2355.5,2354.8,0.001]
[1770093765125,13.99066197,2355.5,2354.8,0.001]
[1770093765352,15.65487466,2355.4,2354.8,0.001]
[1770093765558,14.7387444,2355.4,2354.8,0.001]
[1770093766428,12.91515751,2355.4,2354.8,0.001]
[1770093766750,12.91080268,2355.4,2354.8,0.001]
[1770093770953,0.0141474,2355.5,2354.8,0.001]
[1770093771368,0.0141474,2355.5,2354.8,11.82672771]
[1770093771544,0.0141474,2355.5,2354.9,13.06278416]
[1770093772254,1.1388634,2356.0,2355.0,11.82572771]
[1770093772460,2.29454349,2356.3,2355.0,11.82572771]
[1770093772461,1.1388634,2356.3,2355.4,1.06139084]
[1770093772669,12.0932205,2356.8,2355.6,11.82572771]
[1770093772670,2.19967438,2356.7,2355.6,11.82572771]
[1770093772873,3.78189082,2356.7,2355.7,1.18257277]
[1770093773176,3.78189082,2356.7,2355.8,0.89]
[1770093773177,13.2320839,2356.6,2355.8,0.89]
[1770093773341,12.0932205,2356.6,2355.8,0.89]
[1770093773743,2.64302742,2356.7,2355.8,0.89]
[1770093774275,2.64304077,2356.7,2355.8,0.89]
[1770093774636,2.64304077,2356.7,2355.9,1.06116558]
[1770093774867,12.0932205,2356.6,2355.8,1.9511847]
[1770093775082,2.64304077,2356.7,2355.5,1.06131689]
[1770093775083,12.0932205,2356.4,2355.5,1.06131689]
[1770093775287,12.0932205,2356.4,2355.6,1.06129625]
[1770093775493,12.0932205,2356.4,2355.7,1.06124661]
[1770093775697,12.0932205,2356.4,2355.6,1.06129771]
[1770093776156,12.0932205,2356.4,2355.8,1.06121012]
[1770093776589,13.15404145,2356.7,2355.8,1.59182289]
[1770093777305,13.15404145,2356.7,2355.3,1.13233348]
[1770093777459,12.10633525,2356.5,2355.4,1.06136813]
[1770093777787,12.10633525,2356.5,2355.3,1.06140212]
[1770093777962,12.10633525,2356.5,2355.4,1.06138519]
[1770093778161,12.10633525,2356.5,2355.2,1.06146075]
[1770093778362,12.0932205,2356.1,2355.0,0.001]
[1770093778586,12.0932205,2356.1,2355.0,1.06254004]
[1770093778866,12.0932205,2356.2,2355.0,12.95906119]
[1770093779176,12.0932205,2356.2,2355.0,12.39981446]
[1770093779360,12.0932205,2356.2,2355.0,13.53214794]
[1770093779562,13.95424292,2356.2,2355.1,3.05863502]
[1770093779758,12.0932205,2356.2,2355.1,3.05863502]
[1770093779957,12.0932205,2356.2,2355.1,1.35321479]
[1770093780177,1.06098544,2356.3,2355.1,13.1789425]
[1770093780491,1.06098544,2356.3,2355.2,12.39881446]
[1770093780692,13.15420594,2356.3,2355.2,1.06148097]
[1770093780882,1.86099387,2356.2,2355.3,0.66606197]
[1770093781680,13.15421103,2356.3,2355.3,0.66606197]
[1770093781889,12.0932205,2356.3,2355.3,0.66606197]
[1770093782190,1.211945,2356.4,2355.3,13.06487643]
[1770093782372,1.0609222,2356.5,2355.3,14.19720991]
[1770093782572,4.24285634,2357.0,2355.5,11.82572771]
[1770093782773,13.69210781,2356.9,2355.7,1.06125567]
[1770093783473,13.69210781,2356.9,2355.4,1.13233348]
[1770093783664,13.69210781,2356.9,2355.1,1.13233348]
[1770093783665,0.01311475,2356.4,2355.1,1.13233348]
[1770093783867,0.01311475,2356.4,2355.0,0.001]
[1770093783868,12.0932205,2356.1,2355.0,0.001]
[1770093784168,0.01311475,2356.2,2354.8,1.13333348]
[1770093784169,12.0932205,2355.9,2354.8,0.001]
[1770093784709,1.22374828,2356.0,2354.3,0.001]
[1770093784710,12.0932205,2355.3,2354.3,0.001]
[1770093784998,12.0932205,2355.1,2354.3,0.001]
[1770093785670,12.0932205,2355.4,2354.3,0.001]
[1770093785870,1.0613488,2355.5,2354.3,2.5303369]
[1770093786069,13.1545693,2355.5,2354.4,0.25313369]
[1770093786269,13.1545693,2355.5,2354.3,0.891]
[1770093786789,13.1545693,2355.5,2354.4,1.06184165]
[1770093787410,12.0932205,2355.5,2354.4,1.06184165]
[1770093787616,13.15438608,2355.9,2354.4,1.56884507]
[1770093787775,13.15438608,2355.9,2354.5,1.13233348]
[1770093787975,1.86096819,2355.8,2354.6,1.50272879]
[1770093788998,13.15447617,2355.7,2354.6,1.43214204]
[1770093789600,13.15447617,2355.7,2354.4,1.06181572]
[1770093789873,13.15447617,2355.7,2354.5,1.06279039]
[1770093790099,13.15447617,2355.7,2354.5,1.06279345]
[1770093790269,12.0932205,2355.5,2354.5,1.06276507]
[1770093790882,12.0932205,2355.3,2354.5,0.001]
[1770093791083,1.31546113,2355.2,2354.5,0.001]
[1770093791496,12.0932205,2355.3,2354.5,0.001]
[1770093792217,1.06139084,2355.4,2354.5,0.001]
[1770093792996,12.0932205,2355.3,2354.5,0.001]
[1770093794000,12.0932205,2355.3,2354.3,0.001]
[1770093795304,1.06148097,2355.2,2354.3,0.001]
[1770093795601,4.24544618,2355.5,2354.3,0.001]
[1770093795784,1.74011125,2355.4,2354.3,0.001]
[1770093796191,13.83333175,2355.4,2354.3,0.001]
[1770093797396,12.0932205,2355.2,2354.3,0.001]
[1770093797924,1.06143591,2355.3,2354.3,0.001]
[1770093798881,0.0011,2355.6,2354.3,13.46606461]
[1770093799084,1.21063353,2356.0,2354.7,11.82572771]
[1770093799279,11.4288634,2356.5,2354.9,14.01967739]
[1770093799280,13.15413518,2356.5,2354.9,14.01967739]
[1770093799590,13.15413518,2356.5,2354.9,14.52668081]
[1770093799902,27.20038205,2356.5,2354.9,1.0616162]
[1770093800126,12.0932205,2356.3,2355.0,0.73304145]
[1770093800944,12.97610344,2356.1,2354.8,1.9516264]
[1770093801246,1.06112054,2356.0,2354.8,1.9516264]
[1770093801557,14.03722398,2356.0,2354.8,1.9516264]
[1770093802441,1.06112054,2356.0,2354.8,1.9516264]
[1770093802741,1.06112054,2356.0,2354.8,14.91291836]
[1770093803039,14.03722398,2356.0,2354.9,1.91596753]
[1770093803210,14.03722398,2356.0,2354.8,1.9516264]
[1770093803837,3.15880602,2356.4,2354.8,1.9516264]
[1770093803838,1.06098544,2356.3,2355.0,12.96129196]
[1770093804945,1.06098544,2356.3,2355.0,12.96229196]
[1770093805150,0.0011,2356.1,2355.0,12.96229196]
[1770093805350,0.0011,2356.1,2355.1,1.06152604]
[1770093805541,0.0011,2356.1,2355.2,2.32699222]
[1770093805747,12.97720344,2356.1,2355.2,2.32699222]
[1770093805955,12.97720344,2356.1,2355.1,1.06152604]
[1770093807326,12.97720344,2356.1,2355.1,14.52982142]
[1770093807327,0.0011,2356.1,2355.1,14.52982142]
[1770093807644,0.0011,2356.1,2355.3,12.96129196]
[1770093807834,0.0011,2356.1,2355.3,14.09362544]
[1770093808553,0.0011,2356.1,2355.3,12.96129196]
[1770093808754,0.0011,2356.1,2355.4,1.40936254]
[1770093809326,0.0011,2356.1,2355.5,1.06134578]
[1770093811134,12.97293067,2356.6,2355.5,1.06134578]
[1770093811361,1.06089539,2356.5,2355.5,1.06134578]
[1770093811654,14.03699883,2356.5,2355.5,1.06134578]
[1770093811857,1.82804408,2356.4,2355.5,1.06134578]
[1770093812046,17.21954537,2356.6,2355.5,1.06134578]
[1770093812047,12.97610344,2356.6,2355.5,1.06134578]
[1770093812250,14.03695528,2356.6,2355.5,1.06134578]
[1770093812446,1.06082941,2356.7,2355.5,14.91581051]
[1770093812971,14.03693285,2356.7,2355.5,14.91581051]
[1770093813662,14.03693285,2356.7,2355.5,1.95134578]
[1770093813837,12.97610344,2356.5,2355.6,0.76062562]
[1770093815537,1.06094041,2356.4,2355.7,1.06125567]
[1770093816148,14.03703302,2356.5,2355.6,1.82191055]
[1770093818368,14.03703302,2356.5,2356.0,5.0]
[1770093818573,12.97610344,2356.3,2356.0,5.0]
[1770093819265,12.97720344,2356.3,2356.0,5.0]
[1770093820137,0.0011,2356.3,2356.0,5.0]
[1770093821665,1.06208788,2356.3,2356.0,4.8753158]
[1770093822065,0.0011,2356.3,2355.5,1.95131619]
[1770093822270,0.0011,2356.3,2355.6,0.61968613]
[1770093823754,1.06209409,2356.3,2355.6,0.61968613]
[1770093824071,1.06209409,2356.3,2355.6,1.6809428]
[1770093824254,0.0011,2356.3,2355.6,1.6809428]
[1770093825054,0.0011,2356.3,2355.6,1.06125667]
[1770093826346,0.0011,2356.3,2355.6,14.051113]
[1770093826645,14.03693127,2356.7,2355.6,14.051113]
[1770093826953,1.06082783,2356.7,2355.6,14.051113]
[1770093827470,1.06082783,2356.7,2355.6,15.18344648]
[1770093827654,1.82799818,2356.6,2355.7,15.02173163]
[1770093827853,1.82799818,2356.6,2355.7,2.0318753]
[1770093827854,14.80410162,2356.6,2355.7,2.0318753]
[1770093828067,14.80410162,2356.6,2355.6,1.06125667]
[1770093828263,15.86499451,2356.6,2355.6,1.06125667]
[1770093828463,15.86499451,2356.6,2355.6,2.19359015]
[1770093828654,15.86499451,2356.6,2355.6,15.18344648]
[1770093829461,15.86499451,2356.6,2355.6,15.18477673]
[1770093829655,15.86499451,2356.6,2355.7,2.18298612]
[1770093831444,15.86499451,2356.6,2355.7,4.37787576]
[1770093832944,15.86499451,2356.6,2355.8,0.001]
[1770093833149,0.0011,2356.4,2355.8,0.001]
[1770093833344,0.0011,2356.4,2356.0,1.06112054]
[1770093833572,0.0011,2356.4,2356.0,2.34006473]
[1770093833772,0.0011,2356.4,2355.9,4.24464111]
[1770093833773,0.0011,2356.4,2355.9,1.06115638]
[1770093834574,0.0011,2356.4,2355.8,0.001]
[1770093834575,11.89552083,2356.4,2355.8,0.001]
[1770093835557,12.95540627,2356.3,2355.8,0.001]
[1770093837272,11.89442083,2356.3,2355.8,0.001]
[1770093837477,12.95544629,2356.3,2355.8,0.001]
[1770093837681,1.72003682,2356.2,2355.8,0.001]
[1770093838392,1.06207229,2356.4,2355.8,0.001]
[1770093838690,1.06207303,2356.4,2355.8,0.001]
[1770093839069,12.95649386,2356.4,2355.8,0.001]
[1770093840065,12.95649386,2356.4,2355.5,1.95234487]
[1770093840788,13.03855592,2356.1,2355.2,0.001]
[1770093841298,1.52930334,2356.2,2355.2,0.001]
[1770093841299,1.14413509,2356.2,2355.4,4.24544067]
[1770093841485,0.0011,2356.4,2355.5,13.92232116]
[1770093841880,1.06204575,2356.4,2355.5,13.92232116]
[1770093842184,0.0011,2356.4,2355.7,1.06125567]
[1770093842485,0.0011,2356.4,2355.7,12.78857707]
[1770093842673,0.0011,2356.4,2355.7,13.9222408]
[1770093844379,0.0011,2356.4,2355.8,1.13366373]
[1770093844574,0.0011,2356.4,2355.7,12.86098513]
[1770093844776,0.0011,2356.4,2355.7,13.89183142]
[1770093844964,0.0011,2356.4,2355.7,2.16451002]
[1770093845171,11.89552083,2356.4,2355.7,1.06123798]
[1770093845572,11.89552083,2356.4,2355.6,2.19493731]
[1770093845787,11.89552083,2356.4,2355.3,2.19507708]
[1770093845993,11.89552083,2356.4,2355.4,1.0613868]
[1770093846188,1.06098544,2356.3,2355.3,1.13366373]
[1770093846378,13.19007146,2356.2,2355.6,0.001]
[1770093848415,1.0610755,2356.1,2355.6,0.001]
[1770093850101,12.95549633,2356.1,2355.6,0.001]
[1770093851018,12.95549633,2356.1,2355.2,1.13466373]
[1770093851199,13.84549633,2356.1,2355.2,0.001]
[1770093851509,13.74394776,2356.0,2355.2,0.001]
[1770093852697,12.95558641,2355.9,2355.2,0.001]
[1770093853810,2.91067552,2356.0,2355.2,0.001]
[1770093853986,2.91067552,2356.0,2355.2,1.86908626]
[1770093854605,2.91067552,2356.0,2355.2,14.65785205]
[1770093856790,1.84952693,2356.0,2355.2,14.65785205]
[1770093856991,1.84952693,2356.0,2355.2,2.93053065]
[1770093856992,2.910648,2356.0,2355.2,2.93053065]
[1770093857784,1.29565063,2356.2,2355.2,14.65785205]
[1770093857994,1.06100685,2356.3,2355.2,14.65785205]
[1770093858206,0.0011,2356.4,2355.2,14.65785205]
[1770093858512,0.0011,2356.4,2355.5,11.7273214]
[1770093858709,0.0011,2356.4,2355.6,12.78862213]
[1770093859592,1.05681586,2356.6,2355.6,12.78862213]
[1770093859786,2.77626224,2356.6,2355.7,1.81674209]
[1770093860511,0.0011,2356.2,2355.7,14.71486085]
[1770093860692,0.0011,2356.2,2355.7,15.77608552]
[1770093860897,0.0011,2356.2,2355.7,2.87796676]
[1770093861094,0.0011,2356.2,2355.7,1.06123941]
[1770093862791,0.0011,2356.2,2355.6,4.24518568]
[1770093863617,0.0011,2356.2,2355.6,1.06130073]
[1770093864419,12.96978912,2356.2,2355.5,2.1949066]
[1770093865607,14.03083592,2356.2,2355.4,0.001]
[1770093865802,1.82748803,2356.1,2355.4,1.06234919]
[1770093866102,1.82748803,2356.1,2355.5,1.0613163]
[1770093866308,1.82748803,2356.1,2355.4,1.06235702]
[1770093866504,1.82748803,2356.1,2355.5,1.06134523]
[1770093866827,14.79617715,2356.1,2355.4,1.06235785]
[1770093867024,15.85727349,2356.1,2355.4,0.001]
[1770093867324,14.79617715,2356.1,2355.4,0.001]
[1770093867522,14.79617715,2356.1,2355.4,0.83207804]
[1770093867725,15.85725269,2356.1,2355.4,0.83207804]
[1770093868304,15.85725269,2356.1,2355.4,0.001]
[1770093870399,12.96868912,2356.0,2355.1,0.001]
[1770093870995,12.96868912,2355.8,2355.0,5.001]
[1770093871200,12.96303948,2355.8,2355.0,5.001]
[1770093873004,12.96868912,2355.6,2355.0,5.001]
[1770093873219,14.3716836,2355.5,2355.0,5.001]
[1770093873924,14.3716836,2355.5,2354.8,0.001]
[1770093875229,14.3716836,2355.5,2355.2,0.001]
[1770093875230,1.06139084,2355.4,2355.2,0.001]
[1770093875444,14.03007996,2355.4,2355.2,0.001]
[1770093879036,14.03007996,2355.4,2355.0,0.001]
[1770093879213,1.0077704,2355.3,2355.0,0.001]
[1770093879811,2.06920687,2355.3,2355.0,0.001]
[1770093882321,1.00155622,2355.3,2355.0,0.001]
[1770093882520,1.06140959,2355.4,2355.0,0.001]
[1770093883132,1.06130554,2355.6,2355.0,0.001]
[1770093883332,1.06128445,2355.7,2355.0,12.89911876]
[1770093883648,0.89,2356.0,2355.0,12.89911876]
[1770093883649,14.02980966,2356.0,2355.0,12.89911876]
[1770093883821,0.89,2355.9,2355.0,12.89911876]
[1770093884019,0.89,2355.9,2355.1,14.18803064]
[1770093884220,14.91980966,2356.0,2355.2,1.06148097]
[1770093884420,14.91980966,2356.0,2355.1,15.24952718]
[1770093884647,14.91980966,2356.0,2355.1,1.28991188]
[1770093884827,14.91980966,2356.0,2355.1,2.35143449]
[1770093885028,16.20606119,2355.9,2355.1,2.35143449]
[1770093885435,16.20606119,2355.9,2355.1,15.24955325]
[1770093885637,1.06109937,2356.1,2355.1,15.24955325]
[1770093888058,1.06216475,2356.2,2355.1,15.24955325]
[1770093889043,11.37484946,2356.1,2355.1,15.24955325]
[1770093889245,0.0011,2355.9,2355.1,15.24955325]
[1770093890168,0.0011,2355.9,2355.1,2.35143449]
[1770093890169,11.85416057,2355.8,2355.1,2.35143449]
[1770093890377,14.17717157,2355.8,2355.1,2.35143449]
[1770093890575,11.85416057,2355.8,2355.1,2.35143449]
[1770093890770,0.0011,2355.9,2355.1,2.35143449]
[1770093891575,12.71010201,2355.9,2355.1,2.35143367]
[1770093892155,12.1476945,2355.9,2355.1,2.35143367]
[1770093892684,12.1476945,2355.9,2355.1,1.06152179]
[1770093893488,1.06114544,2356.0,2355.1,13.80146132]
[1770093894381,1.06221517,2356.1,2355.1,13.80146132]
[1770093895489,0.0011,2356.1,2355.1,13.80146132]
[1770093897267,12.71010201,2356.1,2355.1,13.80146132]
[1770093897468,1.06116558,2355.9,2355.1,16.29594975]
[1770093897670,1.06114921,2356.0,2355.1,16.29594975]
[1770093897875,1.06114921,2356.0,2355.2,12.73993953]
[1770093898459,1.06219396,2356.1,2355.2,12.73993953]
[1770093899674,1.06219396,2356.1,2355.3,13.80137544]
[1770093899872,2.86384399,2356.1,2355.3,15.96889777]
[1770093900571,0.0011,2356.1,2355.4,12.73993953]
[1770093900896,0.0011,2356.2,2355.5,13.87353541]
[1770093901591,0.0011,2356.2,2355.6,1.06130073]
[1770093901770,0.0011,2356.2,2355.7,13.62993953]
[1770093901967,0.0011,2356.2,2355.7,0.89]
[1770093902489,0.0011,2356.2,2355.2,1.13359588]
[1770093902490,0.01311475,2355.9,2355.2,1.13359588]
[1770093902693,13.34356895,2356.1,2355.3,0.001]
[1770093902866,0.0011,2356.0,2355.3,13.80235218]
[1770093903070,12.71010201,2356.0,2355.3,0.001]
[1770093903298,12.70900201,2355.8,2355.3,0.001]
[1770093903666,13.77024946,2355.8,2355.3,0.001]
[1770093904398,13.77021982,2355.8,2355.3,0.001]
[1770093908903,2.33218146,2355.9,2355.3,0.001]
[1770093910204,1.2710102,2355.9,2355.3,0.001]
[1770093910404,1.06224958,2356.0,2355.3,12.74093953]
[1770093910907,12.71010201,2356.0,2355.3,0.001]
[1770093911902,13.85413804,2356.0,2355.0,0.00784076]
[1770093912423,12.70900201,2355.8,2355.0,0.00784076]
[1770093913029,12.70900201,2355.6,2355.0,0.00784076]
[1770093913195,14.08602778,2355.5,2355.0,0.00784076]
[1770093913394,1.06226276,2356.0,2355.1,13.62993953]
[1770093913905,13.77126477,2356.0,2355.1,0.89]
[1770093914816,0.0011,2356.0,2355.1,13.62993953]
[1770093915021,0.0011,2356.0,2355.3,12.73993953]
[1770093915722,0.0011,2356.0,2355.3,14.24971751]
[1770093916022,0.0011,2356.2,2355.4,14.27105938]
[1770093916990,0.0011,2355.7,2355.4,14.27105938]
[1770093917219,0.0011,2355.7,2355.5,13.80128531]
[1770093920719,0.0011,2355.7,2355.5,1.06134578]
[1770093920917,0.0011,2355.7,2355.2,1.0624576]
[1770093921120,0.0011,2355.7,2355.2,0.001]
[1770093924036,12.81214252,2355.9,2355.2,0.001]
[1770093924247,12.80750176,2355.9,2355.2,0.001]
[1770093924638,13.86868151,2355.9,2355.2,0.001]
[1770093925745,13.86868151,2355.9,2354.8,0.001]
[1770093925909,13.9692933,2355.7,2354.8,0.001]
[1770093926107,13.9692933,2355.7,2354.7,0.001]
[1770093926327,12.81214252,2355.5,2354.7,0.001]
[1770093927307,12.81214252,2355.3,2354.7,0.001]
[1770093927906,12.81214252,2355.3,2354.3,4.24852874]
[1770093928106,12.81214252,2355.1,2354.3,4.77977029]
[1770093928443,12.81214252,2355.1,2354.3,0.001]
[1770093929539,13.87371364,2355.0,2354.3,0.001]
[1770093930139,1.95146871,2355.3,2354.3,11.97642545]
[1770093930707,14.76361123,2355.3,2354.3,11.97642545]
[1770093930907,14.76361123,2355.3,2354.5,0.001]
[1770093931228,1.90092437,2355.2,2354.5,0.001]
[1770093931535,1.90092437,2355.2,2354.6,1.06175146]
[1770093931706,12.81214252,2355.6,2354.6,1.06175146]
[1770093931707,2.87366799,2355.8,2354.6,13.03717691]
[1770093931911,2.87364704,2355.8,2354.6,13.03717691]
[1770093932849,2.87364853,2355.8,2354.6,13.03717691]
[1770093933627,2.87364853,2355.8,2354.6,13.92717691]
[1770093934135,0.0011,2355.8,2354.8,11.97542545]
[1770093934735,0.0011,2355.8,2355.0,11.97542545]
[1770093935234,12.81324252,2356.2,2356.1,0.0053209]
[1770093935543,13.87427485,2356.2,2355.2,11.97542545]
[1770093936113,13.87427485,2356.2,2355.3,1.06143591]
[1770093936314,1.81182355,2356.1,2355.3,1.06143591]
[1770093936927,0.0011,2356.2,2355.3,13.03686136]
[1770093937530,13.87427648,2356.2,2355.3,1.06143591]
[1770093938841,13.87427648,2356.2,2355.2,4.24574563]
[1770093939015,13.87427648,2356.2,2355.2,1.06148097]
[1770093939343,13.87427648,2356.2,2355.1,13.03691654]
[1770093939538,14.62396794,2356.1,2355.1,13.03691654]
[1770093940831,14.62396794,2356.1,2355.1,1.06149109]
[1770093941233,4.25833664,2356.4,2355.4,11.97542545]
[1770093941234,0.0011,2356.4,2355.4,11.97542545]
[1770093941547,0.0011,2356.4,2355.4,12.86542545]
[1770093941718,0.0011,2356.4,2355.4,13.34714494]
[1770093942443,0.0011,2356.4,2355.6,11.97542545]
[1770093942647,0.0011,2357.0,2355.7,13.19632503]
[1770093943009,0.0011,2357.0,2356.1,11.97542545]
[1770093943213,1.06042875,2357.6,2356.4,11.97542545]
[1770093944033,1.06042875,2357.6,2356.3,11.97542545]
[1770093944231,1.06042875,2357.6,2356.5,11.97542545]
[1770093944232,1.81139943,2357.5,2356.5,11.97542545]
[1770093944736,1.06038915,2357.7,2356.5,11.97542545]
[1770093945232,1.06038915,2357.7,2356.6,13.03627582]
[1770093945632,13.87253167,2357.7,2356.6,1.06085037]
[1770093946031,13.87253167,2357.7,2356.5,1.060866]
[1770093947231,13.87253167,2357.7,2356.5,13.03629145]
[1770093947553,1.81138892,2357.6,2356.5,14.76427875]
[1770093947921,14.62353144,2357.6,2356.5,1.06089298]
[1770093948525,14.62353144,2357.6,2356.2,12.86542545]
[1770093948730,14.62353144,2357.6,2355.9,1.06213603]